bitfinex/quotes_ETHUSD_20250623
["timestamp","ask_amount","ask_price","bid_price","bid_amount"]
[1750708753743,0.36216243,2316.4,2316.0,4.31770572]
[1750708754151,0.36216243,2316.4,2315.8,4.31807849]
[1750708754314,2.084,2316.3,2315.8,4.31807849]
[1750708754514,0.36183749,2316.2,2316.0,4.31778543]
[1750708754714,0.36183749,2316.2,2315.5,10.0]
[1750708755207,0.36183749,2316.2,2315.4,0.8158]
[1750708755208,2.44583749,2316.2,2315.4,0.8158]
[1750708755404,2.44583749,2316.2,2315.8,4.31800921]
[1750708755870,2.44583749,2316.2,2315.4,0.8158]
[1750708755871,2.44583749,2316.2,2315.9,4.31795471]
[1750708756024,2.44583749,2316.2,2315.4,0.8158]
[1750708756222,0.24458375,2316.1,2315.4,0.8158]
[1750708756445,0.36120207,2316.0,2315.8,4.31805986]
[1750708756652,0.36120207,2316.0,2315.9,4.31797573]
[1750708757261,0.36120207,2316.0,2315.5,10.0]
[1750708757465,0.36120207,2316.0,2315.9,4.31797573]
[1750708758357,0.36120207,2316.0,2315.9,5.08537573]
[1750708758524,0.36120207,2316.0,2315.9,6.02572789]
[1750708758732,0.36120207,2316.0,2315.9,16.02572789]
[1750708758954,1.33175954,2316.5,2316.4,4.31704368]
[1750708759253,10.9842322,2318.2,2317.1,4.3157395]
[1750708759254,2.084,2317.3,2317.1,4.3157395]
[1750708759455,2.084,2317.3,2316.5,0.7751]
[1750708759661,11.6176,2317.2,2316.8,4.31619069]
[1750708759857,10.372,2317.2,2317.1,4.3157395]
[1750708760151,10.372,2317.2,2316.5,0.7751]
[1750708760349,10.372,2317.2,2316.5,4.31673169]
[1750708760527,10.372,2317.2,2316.4,10.0]
[1750708760712,10.372,2317.2,2316.7,4.31638006]
[1750708760918,1.0372,2317.1,2316.7,4.31638006]
[1750708761150,10.372,2317.2,2316.8,4.31622489]
[1750708761354,10.372,2317.2,2316.2,10.0]
[1750708761650,10.372,2317.2,2316.5,4.31669527]
[1750708761854,0.7593,2317.1,2316.1,5.09270235]
[1750708762053,10.372,2317.2,2315.1,11.8008322]
[1750708762054,10.7593,2316.8,2315.1,11.8008322]
[1750708762350,2.084,2316.7,2316.2,4.31727809]
[1750708763152,10.55,2316.6,2315.4,4.31887915]
[1750708763448,10.55,2316.6,2315.9,4.31785437]
[1750708763449,1.2634,2316.5,2315.9,4.31785437]
[1750708764256,1.2634,2316.5,2315.5,1.31265792]
[1750708764465,2.084,2316.4,2315.7,10.0]
[1750708764645,2.084,2316.4,2316.2,4.31723499]
[1750708764832,2.084,2316.4,2315.8,4.31816219]
[1750708764833,2.084,2316.4,2316.3,4.31723006]
[1750708765040,2.084,2316.4,2315.6,10.0]
[1750708765236,0.7593,2316.8,2315.6,10.0]
[1750708765436,3.15993,2316.7,2316.3,4.31705205]
[1750708765626,0.7593,2316.8,2316.1,5.07510286]
[1750708765831,2.084,2316.7,2316.3,4.31712297]
[1750708766031,2.084,2316.7,2316.4,4.31703623]
[1750708766331,2.084,2316.7,2316.1,0.7575]
[1750708766528,2.084,2316.8,2316.4,4.31704368]
[1750708766726,2.403713,2316.8,2316.0,10.0]
[1750708766965,2.084,2316.7,2316.3,4.31708497]
[1750708767130,2.084,2316.7,2316.4,4.31701297]
[1750708767347,2.084,2316.7,2316.2,4.31734178]
[1750708767856,0.319713,2316.8,2316.3,4.31721426]
[1750708768057,2.084,2316.7,2316.3,4.31710773]
[1750708768366,2.084,2316.7,2316.0,4.31771353]
[1750708768569,1.11313,2317.0,2316.4,4.31691148]
[1750708768770,2.115,2316.9,2316.5,4.31675272]
[1750708769472,2.115,2316.9,2316.4,4.31696965]
[1750708769671,3.437813,2316.9,2315.8,0.7575]
[1750708769840,0.7764,2316.8,2315.8,0.7575]
[1750708770035,0.7764,2316.8,2316.1,4.31757522]
[1750708770231,0.7764,2316.8,2316.1,4.31750559]
[1750708770497,0.7764,2316.8,2316.2,4.31739137]
[1750708770675,2.115,2316.7,2316.2,4.31741645]
[1750708770862,2.115,2316.6,2316.3,4.31709662]
[1750708771058,2.115,2316.6,2315.8,10.7575]
[1750708771259,2.115,2316.6,2316.2,4.31739962]
[1750708771463,0.26924722,2316.5,2316.2,4.31739962]
[1750708771659,0.26924722,2316.5,2315.8,15.07565898]
[1750708771660,0.26924722,2316.4,2315.8,0.7575]
[1750708771887,2.115,2316.6,2315.9,4.31787736]
[1750708771888,0.26924722,2316.3,2315.9,4.31787736]
[1750708772193,0.8256,2316.3,2316.0,4.317699]
[1750708772398,0.8256,2316.3,2315.9,4.31790576]
[1750708772606,1.24973141,2316.5,2315.6,4.31853515]
[1750708772793,2.384296,2316.4,2315.7,0.51441352]
[1750708772990,2.115,2316.4,2315.7,0.51441352]
[1750708773190,2.115,2316.5,2315.7,0.51441352]
[1750708773410,2.115,2316.5,2316.3,4.3172163]
[1750708773717,3.12630669,2316.8,2316.4,4.31688692]
[1750708773861,0.26929645,2316.7,2316.4,4.31688692]
[1750708774063,0.26929645,2316.6,2316.4,4.31688692]
[1750708774316,0.26929605,2316.5,2315.8,15.14590047]
[1750708774616,0.26929605,2316.4,2316.2,4.31732535]
[1750708774756,3.12630669,2316.7,2316.1,4.31751749]
[1750708774955,1.6452777,2316.6,2316.2,4.31741521]
[1750708775160,0.26939316,2316.5,2316.3,4.31722074]
[1750708775382,0.26939316,2316.4,2316.2,4.31732633]
[1750708775585,0.36467887,2316.6,2316.2,4.31732633]
[1750708775788,0.2693927,2316.5,2316.3,4.31717584]
[1750708775994,0.2693927,2316.4,2316.2,4.31730424]
[1750708776175,1.37598556,2316.6,2316.2,4.31730424]
[1750708776376,0.26939246,2316.5,2316.3,4.31722517]
[1750708776584,0.26939246,2316.4,2316.3,4.31722517]
[1750708776795,0.26939246,2316.4,2316.2,4.31733395]
[1750708776959,0.26939246,2316.4,2316.1,4.31751207]
[1750708776960,0.26939246,2316.3,2316.1,4.31749317]
[1750708777183,2.38444158,2316.2,2315.4,0.7504]
[1750708777383,0.23844416,2316.1,2315.9,4.31788879]
[1750708777563,0.26943822,2316.0,2315.9,4.31788879]
[1750708777768,2.115,2316.1,2315.9,4.31783623]
[1750708778123,2.115,2316.1,2316.0,4.31778929]
[1750708778268,0.26944097,2316.1,2316.0,4.31778929]
[1750708778465,2.115,2316.2,2316.0,4.31778929]
[1750708778670,0.26963323,2316.1,2316.0,4.31778929]
[1750708779111,0.60935587,2316.1,2315.6,10.0]
[1750708779312,2.115,2316.2,2315.9,4.31788867]
[1750708779313,0.26963323,2316.0,2315.9,4.31788867]
[1750708779878,0.26963323,2316.0,2315.8,4.31806345]
[1750708780228,2.115,2316.2,2315.9,4.31797573]
[1750708780372,0.26985103,2316.1,2316.0,4.31778929]
[1750708780575,2.115,2316.6,2316.0,1.6139714]
[1750708780905,1.28359597,2316.5,2316.1,4.31751649]
[1750708781113,0.26985733,2316.4,2316.3,4.31723006]
[1750708781611,0.26985733,2316.4,2316.0,5.06801806]
[1750708781612,0.26985733,2316.4,2316.0,0.7504]
[1750708781779,0.26989512,2316.3,2316.1,4.31758604]
[1750708781976,1.0142761,2316.5,2316.4,4.3168972]
[1750708782232,1.0142761,2316.5,2316.3,4.31716686]
[1750708782233,1.28417255,2316.5,2316.0,0.7504]
[1750708782381,0.26989617,2316.4,2316.3,4.31712307]
[1750708782575,1.01537751,2316.4,2316.3,4.31712307]
[1750708782885,1.28571914,2316.4,2316.3,4.31712307]
[1750708783213,1.29661964,2316.4,2316.2,4.31730127]
[1750708783514,0.27034069,2316.3,2316.2,4.31737639]
[1750708784000,0.270366,2316.3,2316.2,4.31737639]
[1750708784414,0.0109,2316.4,2316.3,4.31723006]
[1750708784612,0.28126868,2316.4,2316.3,4.31723006]
[1750708784910,0.28126966,2316.4,2316.3,4.31723006]
[1750708785213,0.0109,2316.4,2316.3,14.31723006]
[1750708785515,0.0109,2316.4,2316.3,21.84223006]
[1750708785717,0.0109,2316.4,2316.3,22.84186521]
[1750708786412,0.0109,2316.4,2316.3,15.86686521]
[1750708786622,0.0109,2316.4,2316.3,23.38786521]
[1750708786975,0.0109,2316.4,2316.3,22.83686521]
[1750708787177,0.0109,2316.4,2316.3,21.83423006]
[1750708788002,0.0109,2316.4,2316.3,21.83223006]
[1750708788206,0.0109,2316.4,2316.3,21.83023006]
[1750708789000,0.0109,2316.4,2316.3,14.31723006]
[1750708789207,0.0364,2316.4,2316.3,21.82623006]
[1750708789575,0.0364,2316.4,2316.3,23.68935119]
[1750708789776,0.0364,2316.4,2316.3,14.31723006]
[1750708789981,0.0364,2316.4,2316.3,22.37223006]
[1750708790696,0.0364,2316.4,2316.3,21.82223006]
[1750708790995,0.0364,2316.4,2316.3,14.31723006]
[1750708791187,0.0364,2316.4,2316.3,21.81623006]
[1750708791383,0.0364,2316.4,2316.3,21.81423006]
[1750708791920,0.0364,2316.4,2316.3,14.31723006]
[1750708792249,0.0364,2316.4,2316.3,21.81323006]
[1750708792406,0.0364,2316.4,2316.3,22.36323006]
[1750708793032,0.0364,2316.4,2316.3,22.35923006]
[1750708793540,0.0364,2316.4,2316.3,22.35823006]
[1750708795188,0.0364,2316.4,2316.3,22.35523006]
[1750708795423,0.0364,2316.4,2316.3,15.10963006]
[1750708795633,0.8694,2317.9,2316.6,0.55]
[1750708795786,0.27029417,2317.8,2316.9,25.82791183]
[1750708796125,0.8294,2317.6,2317.0,7.501]
[1750708796334,1.27491629,2317.7,2317.0,7.501]
[1750708796335,2.38529417,2317.5,2317.0,11.81691473]
[1750708796534,1.09969417,2317.4,2317.0,7.501]
[1750708796739,0.8294,2317.4,2317.1,4.31564446]
[1750708797034,0.8294,2317.4,2317.1,11.81663358]
[1750708797345,1.12384,2317.4,2317.1,7.501]
[1750708797641,0.27022159,2317.3,2317.1,7.497]
[1750708797806,1.12384,2317.4,2317.1,11.81265145]
[1750708798003,0.27015784,2317.3,2317.0,7.495]
[1750708798207,0.27015784,2317.3,2316.1,0.8295]
[1750708798208,0.7809,2317.2,2316.1,0.8295]
[1750708798533,0.7809,2317.2,2316.3,10.0]
[1750708798695,0.7809,2317.2,2316.6,14.31664519]
[1750708799017,0.7809,2317.2,2316.6,14.31659612]
[1750708799202,0.7809,2317.2,2316.9,4.31600356]
[1750708799637,0.7809,2317.2,2316.6,4.31663843]
[1750708799854,0.7809,2317.0,2315.8,0.8295]
[1750708800138,1.07906505,2316.9,2316.4,4.31693172]
[1750708800338,0.809,2316.9,2316.6,4.31665991]
[1750708800542,0.809,2316.9,2316.6,4.31665988]
[1750708800744,0.809,2316.9,2316.7,4.31635861]
[1750708800917,1.55462212,2317.7,2316.8,4.31629834]
[1750708801121,0.7876,2317.5,2316.8,4.31621635]
[1750708801336,0.7876,2317.5,2316.8,4.31629004]
[1750708801535,0.7876,2317.5,2316.7,4.31642192]
[1750708801705,0.7876,2317.5,2316.8,4.31620571]
[1750708802049,0.28776,2317.4,2316.8,4.31620571]
[1750708802407,0.28776,2317.4,2316.6,4.31658279]
[1750708802408,0.8006,2317.3,2316.6,4.31663721]
[1750708802604,2.09,2317.2,2316.7,4.31632436]
[1750708802852,2.09,2317.2,2316.6,4.31651251]
[1750708803170,0.8006,2317.3,2316.7,4.3163079]
[1750708803171,2.8906,2317.3,2316.7,4.3163079]
[1750708803369,2.8906,2317.3,2316.8,0.43163079]
[1750708803568,2.8906,2317.3,2316.5,7.505]
[1750708803716,0.8006,2317.2,2316.3,4.31713116]
[1750708803919,0.8006,2317.2,2316.7,4.31646733]
[1750708804162,0.8006,2317.2,2316.7,4.31633869]
[1750708804331,0.8006,2317.2,2316.6,4.31656703]
[1750708804530,0.8006,2317.2,2316.5,4.31674564]
[1750708804730,1.08966,2317.2,2316.4,11.83794451]
[1750708804939,0.28906,2317.2,2316.4,11.83794451]
[1750708805151,0.8006,2317.1,2316.5,4.31671471]
[1750708805560,0.8006,2317.1,2316.5,4.31674351]
[1750708805762,0.8006,2317.1,2316.4,4.31695557]
[1750708806061,0.8006,2317.0,2316.2,4.31733645]
[1750708806378,0.8006,2317.0,2316.4,4.31702554]
[1750708806866,0.27031737,2316.9,2316.3,7.522]
[1750708807071,2.09,2316.8,2316.3,4.31722391]
[1750708807524,2.37906,2316.8,2316.2,7.521]
[1750708807729,2.37906,2316.8,2316.2,4.3173463]
[1750708807730,0.8006,2316.7,2316.2,4.3173463]
[1750708807931,0.8006,2316.7,2316.2,4.31724111]
[1750708808177,0.8006,2316.7,2316.0,4.31774703]
[1750708808372,0.8006,2316.7,2316.1,4.31751803]
[1750708808678,1.118566,2316.7,2316.3,4.31715315]
[1750708808884,1.118566,2316.7,2316.0,4.31765125]
[1750708809037,1.118566,2316.7,2316.1,4.31752262]
[1750708809356,1.118566,2316.7,2316.1,4.3174815]
[1750708810270,1.118566,2316.7,2315.9,7.52]
[1750708810479,1.118566,2316.7,2316.2,4.31738299]
[1750708810636,1.118566,2316.7,2316.1,4.31749627]
[1750708810837,1.118566,2316.7,2316.2,4.31734372]
[1750708811174,0.7779,2317.0,2316.3,7.513]
[1750708811399,0.7779,2317.0,2316.2,0.7875]
[1750708811677,0.7779,2317.0,2316.4,4.31694559]
[1750708811840,2.8679,2317.0,2316.4,4.31694559]
[1750708812237,2.8679,2317.0,2316.4,4.31691851]
[1750708812440,2.8679,2317.0,2316.6,4.31664687]
[1750708812885,2.8679,2317.0,2316.5,4.31676423]
[1750708813067,0.7779,2316.8,2315.9,4.31782755]
[1750708813387,0.27060803,2316.7,2316.1,4.3175147]
[1750708813676,0.7779,2316.5,2316.0,4.31767758]
[1750708813840,0.7779,2316.5,2316.1,4.31759886]
[1750708814453,0.7779,2316.5,2316.2,4.31735799]
[1750708815065,0.7779,2316.5,2316.3,4.31719205]
[1750708815264,0.7779,2316.5,2316.4,4.31704368]
[1750708815462,0.7779,2316.5,2316.2,4.31733879]
[1750708815463,0.7779,2316.5,2316.3,4.31717785]
[1750708815880,0.7779,2316.5,2316.1,4.31752981]
[1750708816079,1.06469,2316.5,2316.0,7.506]
[1750708816280,0.7779,2316.5,2316.3,4.31712534]
[1750708817070,0.7779,2316.5,2316.3,4.31720978]
[1750708817281,0.7779,2316.5,2316.4,4.31704368]
[1750708817865,0.7779,2316.5,2316.3,4.31711608]
[1750708818260,0.7779,2316.5,2316.3,4.31722529]
[1750708818491,0.7779,2316.5,2316.4,4.31704368]
[1750708818667,0.7779,2316.5,2316.3,4.31713683]
[1750708818867,1.06469,2316.5,2316.0,4.3176549]
[1750708819082,1.06469,2316.5,2316.1,4.31749404]
[1750708819400,1.06469,2316.5,2316.2,4.31740854]
[1750708819887,1.06469,2316.5,2316.1,4.31750777]
[1750708820201,1.06469,2316.5,2316.2,4.3174036]
[1750708820823,1.06469,2316.5,2316.1,4.31752143]
[1750708821027,1.06469,2316.5,2316.1,4.31742368]
[1750708821186,1.06469,2316.5,2316.0,4.31771412]
[1750708821521,0.7779,2316.5,2316.3,4.31715109]
[1750708821890,0.7779,2316.5,2315.7,10.7875]
[1750708822111,0.7779,2316.5,2315.7,4.31826456]
[1750708822303,0.82,2316.3,2315.4,4.318784]
[1750708822522,0.55,2316.0,2315.1,0.04]
[1750708822692,0.55,2315.7,2315.1,0.04]
[1750708823020,0.7877,2315.5,2315.1,0.04]
[1750708823222,0.7877,2315.5,2315.1,4.35939045]
[1750708823586,0.7877,2315.5,2315.2,4.31923641]
[1750708823829,0.7877,2315.5,2315.3,4.31898807]
[1750708824042,0.7877,2315.5,2315.4,4.31890818]
[1750708825017,2.84,2315.9,2315.4,0.86378963]
[1750708825329,2.84,2315.9,2315.4,4.31890682]
[1750708825918,2.84,2315.9,2315.1,4.35933223]
[1750708826239,0.75,2315.8,2315.1,0.04]
[1750708826594,0.75,2315.8,2315.3,4.31900034]
[1750708826794,0.75,2315.8,2315.1,4.35934682]
[1750708826795,0.284,2315.7,2315.2,4.31917802]
[1750708827018,0.284,2315.7,2315.3,4.31906668]
[1750708827293,0.284,2315.7,2315.2,4.3191913]
[1750708827493,0.284,2315.7,2315.2,4.31909586]
[1750708827706,0.284,2315.7,2315.3,4.31899992]
[1750708827920,0.7841,2315.6,2315.1,0.04]
[1750708828213,0.7841,2315.6,2315.1,4.35946587]
[1750708828817,0.7841,2315.6,2315.1,0.04]
[1750708828993,1.10681,2315.5,2315.1,4.35940582]
[1750708829195,0.7841,2315.6,2315.1,0.04]
[1750708829424,0.7841,2315.6,2315.5,4.31872165]
[1750708829626,2.087,2315.8,2315.6,4.31852774]
[1750708829822,2.087,2315.8,2315.5,4.31862941]
[1750708830011,2.087,2315.8,2315.4,4.31881991]
[1750708830403,0.7841,2315.9,2315.8,4.31816219]
[1750708830804,2.8535,2316.2,2315.8,4.31805228]
[1750708831105,2.8535,2316.2,2315.9,4.31783083]
[1750708831711,2.8535,2316.2,2316.0,4.31775646]
[1750708831952,2.087,2316.2,2316.1,4.31760286]
[1750708832143,7.86,2316.6,2316.2,0.7956]
[1750708832445,2.8544,2316.9,2316.3,4.31715121]
[1750708832663,10.0,2316.8,2316.2,4.31730925]
[1750708832818,10.0,2316.8,2315.9,0.7956]
[1750708833021,0.7674,2316.7,2315.6,10.7956]
[1750708833250,0.7674,2316.7,2316.2,4.31729258]
[1750708833405,0.7674,2316.7,2315.7,15.04119939]
[1750708833736,0.7674,2316.7,2316.4,4.31699976]
[1750708833938,0.28679,2317.0,2316.2,0.7764]
[1750708833939,1.11759,2317.0,2316.2,0.7764]
[1750708834141,1.11759,2317.0,2316.4,4.31704368]
[1750708834349,1.11759,2317.0,2316.6,4.31652885]
[1750708834514,1.11759,2317.0,2316.3,4.31723006]
[1750708834715,1.11759,2317.0,2316.7,4.3164024]
[1750708834916,1.11759,2317.0,2316.6,4.31658481]
[1750708835134,1.11759,2317.0,2316.4,4.31692788]
[1750708835644,1.11759,2317.0,2316.3,4.31721919]
[1750708835645,1.11759,2317.0,2316.2,11.81735285]
[1750708835861,1.11759,2317.0,2316.3,4.31705586]
[1750708836161,1.11759,2317.0,2316.3,4.317105]
[1750708836369,1.11759,2317.0,2316.1,10.0]
[1750708836672,0.8308,2316.9,2316.0,4.31769338]
[1750708836973,0.8308,2316.9,2316.1,4.31752291]
[1750708837143,0.55,2316.4,2315.4,4.31884694]
[1750708837340,10.7776,2316.2,2315.5,4.31871859]
[1750708837542,1.31328643,2316.1,2315.5,4.31871859]
[1750708837938,1.31328643,2316.1,2315.6,4.31853261]
[1750708838272,1.31328643,2316.1,2315.1,12.63335588]
[1750708838554,0.7776,2316.2,2315.3,19.36018192]
[1750708838734,0.7776,2316.2,2315.6,4.31835843]
[1750708838936,0.7776,2316.2,2315.7,4.31834712]
[1750708839337,0.7776,2316.2,2315.6,4.31844247]
[1750708840282,0.7776,2316.2,2315.5,4.31863635]
[1750708840580,0.28636,2316.1,2315.6,4.31853344]
[1750708841673,0.28636,2316.1,2315.1,0.8189]
[1750708841892,0.28636,2316.1,2315.7,4.31821921]
[1750708842232,0.28636,2316.1,2315.8,4.31815496]
[1750708842476,0.28636,2316.1,2315.7,4.31821921]
[1750708842477,0.28636,2316.1,2315.7,4.3182632]
[1750708842890,0.28636,2316.1,2315.3,14.31909471]
[1750708843172,0.28636,2316.1,2315.7,4.3181799]
[1750708844472,0.28636,2316.1,2315.6,4.31842697]
[1750708844946,0.28636,2316.1,2315.7,4.31834059]
[1750708845146,0.28636,2316.1,2315.6,4.31848793]
[1750708845546,0.28636,2316.1,2315.5,4.31863007]
[1750708845747,0.28636,2316.1,2315.7,4.31831755]
[1750708845959,0.28636,2316.1,2315.8,4.31814825]
[1750708846157,0.28636,2316.1,2315.7,4.3182436]
[1750708847284,0.28636,2316.1,2315.6,4.3184561]
[1750708847577,0.28636,2316.1,2315.5,4.31862807]
[1750708847876,0.28636,2316.1,2315.6,4.31852783]
[1750708848082,0.28636,2316.1,2315.5,4.31861843]
[1750708848276,0.28636,2316.1,2315.6,4.31849737]
[1750708848656,0.28636,2316.1,2315.7,4.31832802]
[1750708848852,0.28636,2316.1,2315.8,4.31811422]
[1750708849169,2.8636,2316.2,2315.9,4.31786376]
[1750708849372,2.8636,2316.2,2315.7,4.31826312]
[1750708849676,2.8636,2316.2,2315.5,4.31862199]
[1750708849876,2.8636,2316.2,2315.5,4.31854512]
[1750708850469,2.8636,2316.2,2315.6,4.31853153]
[1750708850669,0.28636,2316.1,2315.2,11.81013736]
[1750708850899,0.28636,2316.1,2315.6,4.31840881]
[1750708851056,2.087,2316.0,2315.8,4.31808454]
[1750708851406,0.7806,2316.4,2315.9,4.31797573]
[1750708851565,0.7806,2316.4,2315.9,0.7748]
[1750708851767,0.7806,2316.4,2316.2,4.31737867]
[1750708852006,2.06736,2316.4,2316.2,4.31737867]
[1750708852295,2.06736,2316.4,2315.9,4.3178068]
[1750708852474,2.06736,2316.4,2316.0,4.31767353]
[1750708853326,2.06736,2316.4,2315.9,4.31786535]
[1750708853474,2.06736,2316.4,2316.2,4.31737131]
[1750708853662,0.7806,2316.4,2316.3,4.31723006]
[1750708853864,0.7806,2316.4,2316.2,4.31733047]
[1750708854073,0.7806,2316.4,2316.1,4.31757417]
[1750708854273,0.7806,2316.4,2315.9,7.49]
[1750708854477,1.06736,2316.4,2316.0,4.31776562]
[1750708854686,1.06736,2316.4,2315.7,7.49]
[1750708854962,1.06736,2316.4,2316.0,4.31777401]
[1750708856498,2.087,2316.5,2316.3,4.31723006]
[1750708856686,0.7519,2316.6,2316.4,4.31695823]
[1750708856894,0.7519,2316.6,2316.5,4.31685732]
[1750708857506,0.7519,2316.8,2316.5,4.31685732]
[1750708857805,0.7519,2316.8,2316.4,4.31694037]
[1750708858327,0.7519,2316.8,2316.4,4.31689257]
[1750708858504,1.064369,2316.8,2316.3,4.31711856]
[1750708858666,1.064369,2316.8,2316.4,4.31700765]
[1750708859211,1.064369,2316.8,2316.3,4.31712828]
[1750708860616,0.7767,2316.6,2315.9,4.31785186]
[1750708860849,0.55,2316.5,2315.5,0.7935]
[1750708861108,0.8289,2316.3,2315.6,4.31839033]
[1750708861275,0.29139,2316.2,2315.6,4.31839033]
[1750708861474,0.7999,2316.1,2315.4,4.31881977]
[1750708861700,0.7999,2316.1,2315.3,5.14943606]
[1750708861701,0.7999,2316.1,2315.6,4.31842702]
[1750708862005,0.7999,2316.1,2315.5,4.31862287]
[1750708862719,0.7999,2316.1,2315.7,4.3181658]
[1750708862720,1.909029,2316.1,2315.7,4.3181658]
[1750708863005,1.909029,2316.1,2315.5,14.31872165]
[1750708863203,0.7999,2316.1,2315.6,4.31851332]
[1750708863413,0.7999,2316.1,2315.9,4.31780589]
[1750708864010,0.752,2316.3,2315.6,4.31853515]
[1750708864172,2.837,2316.7,2316.1,4.31760286]
[1750708864377,0.752,2317.1,2316.3,15.04119939]
[1750708864592,2.085,2317.2,2316.9,4.31603425]
[1750708864796,0.752,2317.3,2316.6,0.7582]
[1750708865086,0.752,2317.3,2317.1,4.31558775]
[1750708865287,2.0733,2317.3,2316.6,0.7582]
[1750708865472,2.0733,2317.3,2316.9,4.31604469]
[1750708865669,2.0733,2317.3,2317.0,4.31582175]
[1750708865910,2.0733,2317.3,2316.6,12.56276031]
[1750708866113,2.0733,2317.3,2317.0,4.31582912]
[1750708866317,2.0733,2317.3,2317.2,4.31555325]
[1750708866529,1.24060937,2317.6,2317.3,4.31524293]
[1750708866530,1.99260937,2317.6,2317.3,4.31524293]
[1750708866825,1.99260937,2317.6,2317.2,4.31544564]
[1750708867135,1.99260937,2317.6,2317.2,4.31542325]
[1750708867287,1.99260937,2317.6,2317.3,4.31525147]
[1750708867481,1.99260937,2317.6,2317.1,0.7582]
[1750708867482,1.24060937,2317.6,2317.5,4.3149946]
[1750708867923,1.24060937,2317.6,2317.1,8.2452]
[1750708868142,1.24060937,2317.6,2317.4,4.31504172]
[1750708868451,0.752,2318.8,2317.8,5.0726361]
[1750708868638,0.752,2318.8,2317.8,37.59983549]
[1750708868785,0.752,2318.8,2317.8,38.14983549]
[1750708868994,0.762,2319.2,2317.9,14.31406474]
[1750708869190,0.762,2319.2,2318.8,4.31257547]
[1750708869712,2.847,2319.2,2318.8,4.31257547]
[1750708870098,0.762,2319.4,2318.8,4.31257547]
[1750708870300,1.31623817,2319.7,2318.8,4.31257547]
[1750708870531,2.085,2319.4,2318.8,4.31257547]
[1750708872725,0.8203,2319.1,2318.7,4.31262203]
[1750708873029,2.124,2318.9,2317.7,5.1379962]
[1750708873237,10.8203,2318.8,2317.7,0.8234]
[1750708873409,0.55,2318.5,2317.4,4.31500025]
[1750708873625,0.772,2318.3,2317.3,0.8234]
[1750708873836,0.55,2318.2,2317.4,4.31502089]
[1750708874150,0.55,2318.2,2317.2,4.31547173]
[1750708874151,0.55,2318.0,2317.2,4.31547173]
[1750708874308,0.772,2317.8,2317.1,4.31560943]
[1750708874512,0.2856,2317.7,2317.1,4.31572258]
[1750708874735,2.084,2317.6,2316.8,4.31629834]
[1750708875008,2.084,2317.6,2316.7,7.482]
[1750708875009,0.772,2317.8,2317.3,4.31526119]
[1750708875214,2.084,2317.7,2317.4,4.31511294]
[1750708875539,0.772,2318.1,2317.7,4.31462225]
[1750708875851,2.084,2318.0,2317.9,4.31422025]
[1750708876252,0.772,2318.1,2317.9,4.31422025]
[1750708876458,2.084,2318.0,2317.9,4.31422025]
[1750708876623,2.3696,2318.0,2317.8,4.31425221]
[1750708876818,2.3696,2318.0,2317.8,4.31434891]
[1750708877022,2.3696,2318.0,2317.3,10.0]
[1750708877251,2.084,2318.0,2317.9,4.31424996]
[1750708877760,2.084,2318.2,2318.1,4.31387774]
[1750708878644,0.772,2318.4,2318.1,4.31387774]
[1750708878822,2.084,2318.3,2318.1,4.31387774]
[1750708879421,2.084,2318.3,2318.2,4.31369165]
[1750708879655,10.368,2318.5,2318.4,4.31331953]
[1750708879854,13.618243,2318.5,2318.2,4.3135656]
[1750708880059,13.618243,2318.5,2318.0,4.31406384]
[1750708880260,13.618243,2318.5,2318.3,4.31333756]
[1750708880461,13.618243,2318.5,2317.9,4.31419352]
[1750708880758,13.618243,2318.5,2318.4,4.31331953]
[1750708880954,10.368,2318.5,2318.4,4.31331953]
[1750708881156,2.084,2318.6,2318.5,4.31313349]
[1750708881663,0.772,2318.8,2318.6,4.31294746]
[1750708881664,1.884,2318.7,2318.6,4.31294746]
[1750708882163,1.884,2318.7,2318.5,4.31303481]
[1750708882864,1.884,2318.7,2318.4,4.31315991]
[1750708883065,2.1536,2318.7,2318.4,4.31315991]
[1750708883246,11.1776151,2318.5,2318.4,4.31315991]
[1750708883565,2.1536,2318.7,2318.5,4.31305043]
[1750708883768,2.1536,2318.7,2317.7,0.768]
[1750708884267,0.55,2318.4,2317.8,4.31429626]
[1750708884776,0.7854,2318.5,2318.0,4.31394566]
[1750708884949,1.8273,2318.5,2317.9,4.31419067]
[1750708885126,1.8273,2318.5,2318.0,4.31403486]
[1750708885327,1.8273,2318.5,2317.9,4.31419067]
[1750708885527,1.8273,2318.5,2318.1,4.31378432]
[1750708885755,1.8273,2318.5,2318.0,4.31398643]
[1750708885958,2.083,2318.4,2317.9,4.31419681]
[1750708886228,0.7946,2318.2,2317.1,4.31555504]
[1750708886456,0.55,2317.9,2317.2,4.31546683]
[1750708886645,2.083,2317.8,2317.3,4.31526774]
[1750708886841,2.083,2317.8,2317.4,4.31516166]
[1750708887043,2.42576,2317.8,2317.5,4.3149453]
[1750708887244,0.7946,2318.0,2317.8,4.3142932]
[1750708887569,2.084,2317.9,2317.5,4.31491254]
[1750708887740,2.084,2317.9,2317.5,4.31493059]
[1750708887948,2.084,2317.9,2317.4,4.31512575]
[1750708888148,10.0,2317.7,2317.1,4.31563084]
[1750708888463,2.22889963,2317.6,2317.3,4.31525739]
[1750708889394,2.22889963,2317.6,2317.2,4.31546896]
[1750708889696,1.3446,2317.8,2316.7,4.31645414]
[1750708889832,1.3446,2317.8,2317.2,4.31544204]
[1750708890032,1.3446,2317.8,2317.1,4.31565533]
[1750708890869,1.3446,2317.8,2316.5,4.31672678]
[1750708891078,1.89216,2317.7,2316.6,10.51021268]
[1750708891282,1.89216,2317.7,2317.0,4.31576633]
[1750708891481,0.55,2317.6,2316.9,4.31603483]
[1750708891848,0.55,2317.6,2317.1,4.3157324]
[1750708892048,0.55,2317.6,2317.0,4.31583997]
[1750708892250,0.244216,2317.5,2317.0,4.31583997]
[1750708892462,10.94439635,2318.1,2316.6,4.8268478]
[1750708892463,2.9071,2318.0,2317.1,25.26013585]
[1750708892644,2.9071,2318.0,2317.3,0.7815]
[1750708892862,2.9071,2318.0,2317.6,4.3147271]